bitfinex/quotes_ETHUSD_20250725
["timestamp","ask_amount","ask_price","bid_price","bid_amount"]
[1753413193172,2.89592957,3625.4,3625.1,0.04]
[1753413193173,0.1376,3625.4,3625.1,0.8501]
[1753413193313,2.75839496,3625.3,3625.1,0.04]
[1753413193512,2.75846849,3625.2,3625.1,0.04]
[1753413193715,0.6399,3625.4,3625.1,0.04]
[1753413194145,0.1376,3625.4,3625.1,0.04]
[1753413194553,0.6399,3625.7,3625.2,0.1376]
[1753413194871,2.89576046,3625.7,3625.2,0.1376]
[1753413195157,0.5023,3625.6,3625.3,2.75838292]
[1753413195452,0.1376,3625.7,3625.2,2.89604315]
[1753413195639,0.52995656,3625.6,3625.1,0.04]
[1753413195944,2.89597593,3625.4,3625.1,0.04]
[1753413196350,0.6399,3625.4,3625.1,0.04]
[1753413196513,0.1376,3625.4,3625.1,0.04]
[1753413196715,2.75846849,3625.2,3625.1,0.04]
[1753413196914,3.72126849,3625.2,3625.1,0.04]
[1753413197151,3.85886849,3625.2,3625.1,0.04]
[1753413199059,2.75907736,3624.4,3624.3,0.001]
[1753413199229,2.78673392,3624.4,3624.3,0.001]
[1753413199550,3.88713392,3624.4,3624.3,0.001]
[1753413200257,3.88713392,3624.4,3623.2,2.75997548]
[1753413200258,2.75999116,3623.2,3622.1,0.04]
[1753413200415,2.78764772,3623.2,3622.4,0.7803]
[1753413200618,3.75044772,3623.2,3622.4,0.7803]
[1753413201116,6.75044772,3623.2,3623.1,1e-08]
[1753413201317,2.76075313,3622.2,3622.1,0.04]
[1753413201646,2.78840969,3622.2,3622.1,0.04]
[1753413201816,3.75120969,3622.2,3622.1,0.04]
[1753413202014,2.7609818,3621.9,3621.8,0.001]
[1753413202347,7.47963836,3621.9,3621.8,0.001]
[1753413202550,2.76151551,3621.2,3621.1,0.04]
[1753413203061,7.30197207,3621.2,3621.1,1e-08]
[1753413203260,3.31159178,3621.1,3621.0,1e-08]
[1753413203420,11.44404834,3621.1,3621.0,1e-08]
[1753413203620,11.41639178,3621.1,3621.0,1e-08]
[1753413203832,11.96639178,3621.1,3620.3,0.001]
[1753413204031,2.76212573,3620.4,3620.3,0.001]
[1753413204232,7.48078229,3620.4,3620.3,0.001]
[1753413204531,0.4928,3620.4,3620.3,0.001]
[1753413204858,0.47,3621.3,3620.4,0.8364]
[1753413205070,3.25408793,3621.5,3620.4,3.62608275]
[1753413205222,0.4928,3621.5,3620.6,2.76197315]
[1753413205423,0.4928,3621.5,3620.7,2.7618924]
[1753413205868,0.4928,3621.5,3620.6,2.7619247]
[1753413206162,3.52045656,3621.4,3620.5,0.83623828]
[1753413206333,0.99045656,3621.3,3620.3,0.001]
[1753413206657,2.76182769,3620.8,3620.3,0.001]
[1753413206858,2.78949031,3620.8,3620.3,0.001]
[1753413207026,0.4928,3620.7,3620.3,0.001]
[1753413207728,0.47,3621.1,3620.4,2.76206252]
[1753413207943,0.47,3621.1,3620.5,2.76204571]
[1753413208256,3.25424579,3621.3,3620.5,2.76204571]
[1753413208456,0.4928,3621.3,3620.5,3.0382804]
[1753413208758,0.4928,3621.3,3620.6,2.76197315]
[1753413208920,0.4928,3621.3,3620.5,0.27630457]
[1753413209121,0.49765656,3621.2,3620.3,0.001]
[1753413209323,2.76193418,3620.7,3620.3,0.001]
[1753413209656,0.55,3621.1,3620.3,0.001]
[1753413209855,0.4928,3620.6,3620.3,0.001]
[1753413210258,0.1384,3620.5,3620.3,0.001]
[1753413210562,0.47,3621.2,3620.3,0.001]
[1753413210882,2.76105164,3621.9,3621.6,2.76116627]
[1753413210883,0.4928,3621.9,3621.6,2.76116627]
[1753413211158,0.4928,3622.3,3621.7,2.7610617]
[1753413211361,0.6312,3622.3,3621.8,2.76100069]
[1753413211522,1.46259276,3622.5,3621.8,2.78864817]
[1753413211719,1.46259276,3622.5,3622.1,2.8991858]
[1753413211720,0.99259276,3622.5,3622.1,2.8991858]
[1753413211925,0.99259276,3622.5,3622.1,3.05073342]
[1753413212129,0.04,3622.9,3622.4,0.1384]
[1753413212331,0.4928,3622.8,3622.4,0.1384]
[1753413212541,0.4928,3622.7,3621.9,2.76090953]
[1753413212754,2.7602959,3622.8,3621.4,3.8441]
[1753413212967,2.7602959,3622.8,3622.0,2.76087722]
[1753413213170,0.5328,3622.9,3621.9,2.76096407]
[1753413213171,2.76037873,3622.7,3621.9,2.76096407]
[1753413213556,2.76037873,3622.7,3621.5,1.42946044]
[1753413213557,0.04,3622.9,3621.6,0.55]
[1753413213750,0.04,3622.9,3622.3,2.76066682]
[1753413214136,0.04,3622.9,3622.4,0.81]
[1753413214379,2.80023018,3622.9,3622.4,0.81]
[1753413214590,0.04,3622.9,3622.4,0.81]
[1753413214777,0.04,3622.9,3622.4,1.16706443]
[1753413215254,0.04,3622.9,3622.7,2.7603167]
[1753413215589,0.04,3622.9,3622.8,0.02760295]
[1753413215800,0.04,3622.9,3622.7,2.76030935]
[1753413216244,0.04,3622.9,3622.8,2.78789885]
[1753413216447,0.04,3622.9,3622.8,3.81585934]
[1753413216981,0.04,3622.9,3622.0,0.785]
[1753413217178,0.04,3622.9,3622.1,0.07190829]
[1753413217547,0.04,3622.9,3622.8,2.7602959]
[1753413217754,0.04,3622.9,3622.8,11.7777959]
[1753413218107,0.04,3622.9,3622.8,11.8220959]
[1753413218313,0.04,3622.9,3622.8,10.64285062]
[1753413218594,0.04,3622.9,3622.8,5.4665]
[1753413219151,0.04,3622.9,3622.8,0.7815]
[1753413219348,0.04,3622.9,3622.8,5.4665]
[1753413219586,0.04,3622.9,3622.8,8.2267959]
[1753413219783,0.04,3622.9,3622.8,8.2710959]
[1753413219999,0.04,3622.9,3622.8,9.37424979]
[1753413220173,0.04,3622.9,3622.8,12.92424979]
[1753413220987,0.04,3622.9,3622.8,12.32894979]
[1753413221496,0.04,3622.9,3622.8,12.37324979]
[1753413222190,0.04,3622.9,3622.8,12.92324979]
[1753413222694,0.04,3622.9,3622.8,13.06164979]
[1753413223351,0.04,3623.9,3623.8,2.75953419]
[1753413223555,0.04,3623.9,3623.8,4.682]
[1753413223755,0.5328,3623.9,3623.8,4.8196]
[1753413224020,4.57995804,3623.9,3623.8,4.682]
[1753413224508,2.0675357,3623.9,3622.2,0.7962]
[1753413224654,2.75983372,3623.5,3622.6,2.76042584]
[1753413224859,3.25265141,3623.4,3623.0,0.1384]
[1753413225205,0.1376,3623.5,3623.1,4.68]
[1753413225389,2.75968798,3623.6,3623.1,4.68]
[1753413225556,0.4928,3623.4,3623.2,4.8176]
[1753413225761,0.4928,3623.3,3623.2,0.1376]
[1753413226094,0.4928,3623.3,3622.6,2.76040092]
[1753413226095,2.76019793,3623.0,3622.4,3.0]
[1753413226401,3.25279934,3623.2,3622.7,0.1384]
[1753413226695,0.4928,3623.2,3622.7,0.1384]
[1753413226899,0.6076,3623.3,3622.7,0.1384]
[1753413227060,2.76015641,3623.0,3622.7,0.1384]
[1753413227277,0.4878,3622.9,3622.7,0.1384]
[1753413227714,0.4878,3622.8,3622.7,0.1384]
[1753413228278,2.76012378,3623.1,3622.7,0.1384]
[1753413228486,0.4878,3623.0,3622.7,0.1384]
[1753413228813,0.601,3623.3,3622.7,0.1384]
[1753413228981,3.36092412,3623.3,3622.7,0.1384]
[1753413229184,3.84872412,3623.3,3622.7,0.1384]
[1753413229381,2.76000966,3623.2,3622.7,0.1384]
[1753413229577,1.0888,3623.3,3622.7,0.1384]
[1753413229578,3.84873397,3623.3,3622.7,0.1384]
[1753413229774,0.6254,3623.3,3622.7,0.1384]
[1753413230008,3.24771917,3623.3,3622.5,4.68]
[1753413230211,3.24773843,3623.3,3623.0,0.1384]
[1753413230410,2.75993843,3623.3,3623.1,4.678]
[1753413230577,2.76006734,3623.1,3623.0,0.1384]
[1753413230783,2.76006734,3623.1,3623.0,4.677]
[1753413230980,3.71126734,3623.1,3623.0,4.677]
[1753413231316,2.76021971,3622.9,3622.3,7.181]
[1753413231518,2.76021971,3622.9,3622.7,0.1384]
[1753413231818,3.7114959,3622.8,3622.7,0.1384]
[1753413232178,0.9512,3622.8,3622.7,0.1384]
[1753413232515,0.827,3623.4,3622.7,4.676]
[1753413232699,2.7602959,3622.8,3622.7,4.676]
[1753413233209,3.7114959,3622.8,3622.7,4.676]
[1753413233430,0.9512,3622.8,3622.7,4.676]
[1753413233915,0.4878,3622.8,3622.7,4.676]
[1753413234113,2.76009437,3623.1,3622.7,4.676]
[1753413234416,0.4878,3623.1,3622.7,4.676]
[1753413234718,0.4878,3623.0,3622.8,4.676]
[1753413235417,3.24794558,3623.0,3622.8,4.676]
[1753413235581,0.4878,3623.0,3622.8,4.676]
[1753413237119,0.4878,3622.9,3622.8,4.676]
[1753413237820,0.9512,3622.9,3622.8,4.676]
[1753413238716,2.7599222,3623.3,3622.8,4.676]
[1753413238717,0.4634,3623.3,3622.8,4.676]
[1753413239016,2.75977398,3623.5,3622.9,0.02760219]
[1753413239219,0.5034,3623.9,3622.9,0.02760219]
[1753413239419,0.04,3623.9,3623.2,2.75996123]
[1753413239718,2.75962572,3623.7,3623.3,4.672]
[1753413239920,0.04,3623.9,3623.3,4.672]
[1753413240081,0.04,3623.9,3623.3,5.1392]
[1753413240282,2.79946073,3623.9,3623.3,5.1392]
[1753413240521,2.79946073,3623.9,3623.3,4.672]
[1753413240721,0.04,3623.9,3623.4,0.81939838]
[1753413241021,0.002,3623.8,3623.7,2.75961034]
[1753413241219,0.002,3623.8,3623.7,8.05250644]
[1753413241426,0.002,3623.8,3623.7,9.93281725]
[1753413241731,0.04,3623.9,3623.8,7.10133419]
[1753413241895,0.04,3623.9,3623.8,11.81363419]
[1753413242299,0.002,3624.5,3624.4,4.08757736]
[1753413242625,1e-08,3624.5,3624.4,11.78416813]
[1753413242830,0.04,3625.9,3625.0,0.55]
[1753413242986,0.04,3625.9,3625.8,2.89561202]
[1753413243191,0.04,3625.9,3625.8,8.34311202]
[1753413243402,0.04,3625.9,3625.8,7.22411202]
[1753413243687,0.04,3625.9,3625.8,9.1351]
[1753413243893,0.04,3625.9,3625.8,12.80662202]
[1753413244312,0.04,3625.9,3625.8,10.04861]
[1753413244631,0.04,3625.9,3625.8,0.9161]
[1753413244932,0.9912,3625.9,3625.8,4.668]
[1753413245094,3.74913596,3625.9,3625.8,4.668]
[1753413245426,2.75801202,3625.8,3625.0,0.8089]
[1753413245609,2.75832516,3625.4,3625.3,0.1376]
[1753413245809,0.97885656,3625.7,3625.3,0.1376]
[1753413246013,2.75831632,3625.4,3625.3,0.1376]
[1753413246221,2.75821704,3625.6,3625.1,4.667]
[1753413246442,0.04,3625.9,3625.3,0.1376]
[1753413246605,0.04,3625.9,3625.1,5.40957612]
[1753413246606,0.04,3625.9,3625.2,2.75846455]
[1753413246808,0.04,3625.9,3625.8,0.1376]
[1753413247009,0.04,3625.9,3625.8,4.8036]
[1753413247507,2.79793596,3625.9,3625.8,4.8036]
[1753413247697,3.74913596,3625.9,3625.8,4.666]
[1753413248026,3.77679252,3625.9,3625.8,4.666]
[1753413248227,2.75801202,3625.8,3624.0,0.0423]
[1753413248425,2.75846849,3625.2,3625.1,0.1376]
[1753413248822,0.4878,3625.4,3625.1,0.1376]
[1753413249128,3.28574385,3625.9,3625.3,0.1376]
[1753413249332,2.75821902,3625.6,3625.3,0.1376]
[1753413249526,0.4878,3625.8,3625.2,4.664]
[1753413249837,0.4878,3625.8,3625.5,0.1376]
[1753413249998,0.4878,3625.8,3625.3,0.02758392]
[1753413250198,0.04,3625.9,3625.7,0.1376]
[1753413250416,0.04,3625.9,3625.8,4.663]
[1753413250619,0.5278,3625.9,3625.8,4.663]
[1753413250902,0.04,3625.9,3625.8,4.663]
[1753413251751,0.04,3625.9,3625.8,7.42101202]
[1753413252097,0.04,3625.9,3625.8,8.17687322]
[1753413252327,0.04,3625.9,3625.8,9.55187322]
[1753413253211,0.04,3625.9,3625.8,12.55187322]
[1753413253532,0.04,3625.9,3625.8,7.88887322]
[1753413253735,0.04,3625.9,3625.8,12.54987322]
[1753413253918,0.04,3625.9,3625.8,7.88887322]
[1753413254096,0.04,3625.9,3625.8,12.54987322]
[1753413255717,1e-08,3625.9,3625.8,12.54987322]
[1753413256448,1e-08,3626.1,3626.0,3.3078599]
[1753413256642,1e-08,3626.1,3626.0,16.1147018]
[1753413256852,1e-08,3626.1,3626.0,16.12942321]
[1753413257138,1e-08,3626.1,3626.0,16.26702321]
[1753413257325,1e-08,3626.1,3626.0,18.80048721]
[1753413257532,0.002,3627.6,3626.8,2.75725157]
[1753413257729,0.002,3627.6,3627.5,3.5947195]
[1753413257929,0.002,3627.6,3627.5,3.75988669]
[1753413258130,0.002,3627.6,3627.5,8.41688669]
[1753413258327,0.002,3627.6,3627.5,8.9393195]
[1753413260205,0.002,3627.6,3627.5,3.7323195]
[1753413260421,0.002,3627.6,3627.5,8.3873195]
[1753413260972,0.002,3627.6,3627.5,0.1376]
[1753413261247,0.9339,3627.6,3627.5,4.7916]
[1753413262645,0.9339,3627.6,3626.5,0.7764]
[1753413262646,0.96155656,3627.6,3626.5,0.7764]
[1753413262804,0.9319,3627.5,3626.6,4.654]
[1753413263011,0.9319,3627.4,3626.7,4.68057327]
[1753413263221,0.9319,3627.4,3626.7,4.653]
[1753413263439,0.497,3627.3,3626.7,4.653]
[1753413263644,0.497,3627.3,3626.1,3.7764]
[1753413263645,2.75710094,3627.0,3626.4,3.0]
[1753413263851,2.75710094,3627.0,3626.0,8.94126331]
[1753413263852,1.3062,3626.9,3626.0,8.94126331]
[1753413264010,2.75734517,3626.7,3626.1,4.652]
[1753413264211,0.9319,3626.6,3626.0,7.175]
[1753413264547,0.9319,3626.5,3626.1,4.652]
[1753413264767,3.25455606,3626.4,3626.1,4.652]
[1753413264969,0.497,3626.3,3626.0,7.175]
[1753413265151,3.25463637,3626.3,3626.0,7.175]
[1753413265354,0.9319,3626.2,3626.0,7.175]
[1753413265557,0.497,3626.1,3626.0,7.175]
[1753413265756,0.9319,3626.1,3626.0,11.826]
[1753413266161,0.9319,3626.1,3626.0,7.175]
[1753413266360,0.497,3626.1,3626.0,7.175]
[1753413266565,0.497,3626.1,3626.0,11.825]
[1753413266749,0.497,3626.1,3626.0,7.175]
[1753413266947,0.497,3626.1,3626.0,11.825]
[1753413267470,0.9319,3626.1,3626.0,11.825]
[1753413267833,0.497,3626.4,3626.0,11.825]
[1753413268175,0.497,3626.3,3626.0,11.825]
[1753413268377,0.497,3626.8,3626.1,0.02757783]
[1753413268538,2.75740875,3626.6,3626.0,11.825]
[1753413269061,0.002,3626.4,3626.0,11.825]
[1753413269262,0.9319,3626.3,3626.0,7.175]
[1753413269461,0.9319,3626.2,3626.1,4.649]
[1753413269664,2.75778384,3626.1,3626.0,7.175]
[1753413269836,0.8056,3626.0,3625.1,0.04]
[1753413270033,0.02765656,3625.9,3625.2,4.648]
[1753413270246,2.75833178,3625.4,3625.2,4.648]
[1753413270486,0.8056,3626.0,3625.2,4.648]
[1753413270487,3.56348284,3626.0,3625.2,4.648]
[1753413270635,3.25510735,3625.7,3625.2,4.648]
[1753413270836,0.497,3625.7,3625.3,0.02758392]
[1753413271035,0.7875,3626.2,3625.3,0.49914231]
[1753413271273,0.497,3625.9,3625.4,4.648]
[1753413271432,0.46255656,3625.8,3625.4,4.648]
[1753413271635,0.497,3626.1,3625.4,4.648]
[1753413271883,0.002,3626.4,3625.4,4.648]
[1753413271884,0.499,3626.4,3625.6,2.75816416]
[1753413272168,0.002,3626.4,3625.7,3.30807108]
[1753413272371,0.499,3626.4,3625.8,5.06233711]
[1753413272736,0.499,3626.4,3626.3,0.1376]
[1753413275542,0.499,3626.9,3626.3,0.16517631]
[1753413275849,0.499,3626.9,3626.3,0.1376]
[1753413275850,2.7575557,3626.4,3626.3,0.1376]
[1753413276061,2.7575557,3626.4,3625.1,0.04]
[1753413276062,2.75808808,3625.8,3625.5,0.1376]
[1753413276257,2.75802501,3625.8,3625.5,0.1376]
[1753413276460,2.75829492,3625.5,3625.3,4.7826]
[1753413276679,0.9319,3625.4,3625.3,4.7826]
[1753413276848,3.69021632,3625.4,3625.3,4.7826]
[1753413277155,0.9319,3625.4,3625.3,4.7826]
[1753413277355,3.69021632,3625.4,3625.3,4.645]
[1753413277578,4.46991632,3625.4,3625.3,4.645]
[1753413279591,2.75846849,3625.2,3625.1,0.04]
[1753413279962,3.69036849,3625.2,3625.1,0.04]
[1753413280848,0.497,3625.2,3625.1,0.04]
[1753413281890,3.25546849,3625.2,3625.1,0.04]
[1753413282061,4.47966849,3625.2,3625.1,0.04]
[1753413283388,0.497,3625.5,3625.1,0.04]
[1753413283639,0.497,3625.4,3625.1,0.1776]
[1753413283936,0.497,3625.4,3625.1,0.79782246]
[1753413284085,0.497,3625.3,3625.1,0.04]
[1753413284484,0.497,3625.3,3625.2,0.1376]
[1753413285226,0.497,3625.3,3625.2,2.89606849]
[1753413285431,1.3373,3625.7,3625.3,2.75837501]
[1753413285633,1.3373,3625.7,3625.2,2.75844726]
[1753413285634,0.497,3625.6,3625.2,2.75844726]
[1753413285934,0.497,3625.6,3625.5,0.1376]
[1753413286096,0.9319,3625.6,3625.5,0.1376]
[1753413286486,5.75751729,3626.5,3625.5,0.1376]
[1753413286487,0.497,3626.2,3625.5,0.1376]
[1753413286684,1.2723,3626.7,3626.4,0.1376]
[1753413287001,3.67306396,3626.6,3626.4,0.1376]
[1753413287182,0.9156,3626.6,3626.4,0.1376]
[1753413287383,0.4706,3626.5,3626.4,0.1376]
[1753413288386,0.4726,3626.9,3626.4,0.1376]
[1753413288586,0.4726,3626.9,3626.4,2.89514338]
[1753413288587,0.9156,3626.8,3626.4,2.89514338]
[1753413288906,0.4706,3626.7,3626.4,2.89514338]
[1753413289102,0.002,3626.9,3626.7,0.1376]
[1753413289294,0.002,3626.9,3626.4,1.05675998]
[1753413289295,0.002,3626.9,3626.8,7.53285157]
[1753413289785,0.002,3626.9,3626.8,8.08285157]
[1753413290919,0.002,3626.9,3626.8,0.1376]
[1753413291136,0.9176,3626.9,3626.8,4.7746]
[1753413291439,0.9176,3626.9,3626.8,0.1376]
[1753413291746,3.67477554,3626.9,3626.8,4.636]
[1753413292109,0.9176,3626.9,3626.8,4.636]
[1753413292310,3.67477554,3626.9,3626.8,4.636]
[1753413292523,3.67477554,3626.9,3626.7,0.1376]
[1753413292524,0.9176,3626.9,3626.7,0.1376]
[1753413292710,3.67285157,3626.8,3626.7,4.7736]
[1753413292924,0.9156,3626.8,3625.9,0.8164]
[1753413293229,0.1376,3626.4,3626.0,4.635]
[1753413293429,3.67325402,3626.3,3626.0,4.635]
[1753413293633,2.75775935,3626.2,3626.0,4.635]
[1753413294141,0.9156,3626.1,3626.0,4.635]
[1753413294354,0.4706,3626.1,3626.0,4.635]
[1753413294556,0.445,3626.4,3626.0,4.635]
[1753413294753,0.1376,3626.6,3626.0,5.6143022]
[1753413295051,3.22798025,3626.7,3626.4,0.1376]
[1753413295250,2.75738025,3626.7,3626.4,0.1376]
[1753413295457,0.9156,3626.6,3626.4,0.1376]
[1753413295812,0.4706,3626.5,3626.4,0.1376]
[1753413296062,0.1396,3626.9,3626.4,0.1376]
[1753413296222,0.002,3626.9,3626.5,4.633]
[1753413296427,0.4726,3626.9,3626.6,0.1376]
[1753413297241,0.4706,3626.8,3626.6,0.1376]
[1753413297624,0.002,3626.9,3626.7,4.632]
[1753413297820,0.4706,3626.8,3626.7,4.632]
[1753413298143,3.67285157,3626.8,3626.7,4.7696]
[1753413298523,0.9156,3626.8,3626.7,0.1376]
[1753413298742,0.9156,3626.8,3626.7,4.7686]
[1753413299613,3.67285157,3626.8,3626.7,0.1376]
[1753413299840,3.67285157,3626.8,3626.7,4.7676]
[1753413300143,3.67285157,3626.8,3626.7,4.63]
[1753413300656,2.75740362,3626.6,3626.5,0.1376]
[1753413300827,0.7724,3626.5,3625.8,0.001]
[1753413301025,2.75785322,3626.1,3625.9,4.7666]
[1753413301233,0.94325656,3626.0,3625.9,4.629]
[1753413301557,0.7724,3626.5,3625.9,4.629]
[1753413301558,0.445,3626.4,3625.9,4.629]
[1753413301880,2.75793596,3625.9,3625.8,0.001]
[1753413302021,2.78559252,3625.9,3625.8,4.63]
[1753413302226,3.70119252,3625.9,3625.8,4.63]
[1753413302526,0.9156,3625.9,3625.8,4.63]
[1753413302731,3.67353596,3625.9,3625.8,0.001]
[1753413303559,0.9156,3625.9,3625.8,0.001]
[1753413303747,0.4706,3625.9,3625.8,0.001]
[1753413304350,0.9156,3626.2,3625.8,0.001]
[1753413304849,3.67345581,3626.1,3625.8,4.628]
[1753413305049,2.75793596,3625.9,3625.8,4.628]
[1753413305232,0.4706,3625.9,3625.8,4.628]
[1753413305748,0.4706,3625.9,3625.8,4.627]
[1753413307373,0.1376,3626.3,3625.8,4.627]
[1753413307530,0.1376,3626.8,3625.8,6.21586855]
[1753413307734,0.812,3626.9,3625.8,6.21586855]
[1753413307735,0.4706,3626.2,3625.9,0.1376]
[1753413307933,2.75793596,3625.9,3625.8,4.627]
[1753413308159,3.70119252,3625.9,3625.8,4.627]
[1753413308562,3.83879252,3625.9,3625.8,0.001]
[1753413308780,3.81113596,3625.9,3625.8,0.001]
[1753413308957,3.83879252,3625.9,3625.8,0.001]
[1753413309158,3.81113596,3625.9,3625.8,0.001]
[1753413312083,3.83879252,3625.9,3625.8,0.001]
[1753413312284,6.83879252,3625.9,3625.8,0.001]
[1753413312488,6.81113596,3625.9,3625.8,0.001]
[1753413313481,11.43213596,3625.9,3625.8,0.001]
[1753413314400,11.43213596,3625.9,3625.1,0.1776]
[1753413314602,2.75846849,3625.2,3625.1,0.04]
[1753413314808,2.78612505,3625.2,3625.1,0.04]
[1753413315106,4.50922505,3625.2,3625.1,0.04]
[1753413315591,4.48156849,3625.2,3625.1,0.04]
[1753413318179,4.48156849,3625.2,3625.0,0.001]
[1753413318180,2.75854459,3625.1,3625.0,1e-08]
[1753413318500,2.75900124,3624.5,3624.4,0.001]
[1753413318813,2.9242578,3624.5,3624.4,0.001]
[1753413319113,3.85030124,3624.5,3624.4,0.001]
[1753413319327,3.8779578,3624.5,3624.4,0.001]
[1753413320011,3.85030124,3624.5,3624.4,0.001]
[1753413320615,0.1376,3624.5,3624.4,0.001]
[1753413320837,3.71270124,3624.5,3624.4,0.001]
[1753413320995,3.85030124,3624.5,3624.4,0.001]
[1753413321219,4.61730124,3624.5,3624.4,0.001]
[1753413321528,2.75907736,3624.4,3624.1,0.04]
[1753413321833,2.75922962,3624.2,3624.1,0.04]
[1753413322004,7.51382962,3624.2,3624.1,0.04]
[1753413322193,8.46752962,3624.2,3624.1,0.04]
[1753413322733,8.46752962,3624.2,3622.9,0.001]
[1753413322734,2.75999116,3623.2,3622.9,0.001]
[1753413323203,3.25299116,3623.2,3622.9,0.001]
[1753413323409,3.74134772,3623.2,3622.9,0.001]
[1753413323994,3.71369116,3623.2,3622.9,0.001]
[1753413325033,3.74134772,3623.2,3622.9,0.001]
[1753413325833,3.71369116,3623.2,3622.9,0.001]
[1753413328739,2.75976555,3623.5,3622.9,0.8229]
[1753413329144,2.75999116,3623.2,3622.9,0.001]
[1753413329347,2.75993459,3623.3,3622.9,0.001]
[1753413329512,0.9537,3623.4,3622.9,0.001]
[1753413329513,2.75999116,3623.2,3622.9,0.001]
[1753413329712,3.71369116,3623.2,3622.9,0.001]
[1753413332151,3.74134772,3623.2,3622.9,0.001]
[1753413332354,2.76014352,3623.0,3622.9,0.001]
[1753413332526,2.7606007,3622.4,3622.3,0.001]
[1753413332718,2.8990007,3622.4,3622.3,0.001]
[1753413332923,3.88035726,3622.4,3622.3,0.001]
[1753413333616,4.66275726,3622.4,3622.3,0.001]
[1753413334220,8.4627007,3622.4,3622.3,0.001]
[1753413334919,3.8527007,3622.4,3622.3,0.001]
[1753413335134,0.7782,3622.7,3622.3,0.001]
[1753413335135,2.76045905,3622.6,3622.3,0.001]
[1753413335332,2.89885905,3622.6,3622.3,0.001]
[1753413335656,0.1384,3622.6,3622.3,0.001]
[1753413335844,2.7606007,3622.4,3622.3,0.001]
[1753413336330,3.74195726,3622.4,3622.3,0.001]
[1753413336530,4.64485726,3622.4,3622.3,0.001]
[1753413337041,2.76143926,3621.3,3621.2,0.1384]
[1753413337241,2.76151551,3621.2,3621.1,0.1784]
[1753413337544,3.25451551,3621.2,3621.1,0.04]
[1753413337747,3.71521551,3621.2,3621.1,0.04]
[1753413338232,3.85361551,3621.2,3621.1,0.04]
[1753413339563,8.46161551,3621.2,3621.1,0.04]
[1753413340226,3.85361551,3621.2,3621.1,0.04]
[1753413340425,3.88127207,3621.2,3621.1,0.04]
[1753413340861,6.88127207,3621.2,3621.1,0.04]
[1753413341018,6.85361551,3621.2,3621.1,1e-08]
[1753413341219,7.68591551,3621.2,3621.1,1e-08]
[1753413341455,8.23591551,3621.2,3621.1,1e-08]
[1753413342625,12.84291551,3621.2,3621.1,1e-08]
[1753413343167,0.2505,3616.9,3615.3,0.98198908]
[1753413343358,0.02765656,3616.8,3615.5,0.1143]
[1753413343664,2.46630541,3617.4,3614.1,0.0676694]
[1753413343665,0.2505,3617.6,3616.2,2.76530747]
[1753413343850,0.2505,3617.6,3616.4,1.25748075]
[1753413344053,2.76456379,3617.3,3616.4,0.952]
[1753413344254,2.76418719,3617.7,3616.5,0.02765104]
[1753413344430,2.76419455,3617.7,3616.4,0.9796518]
[1753413344626,4.644,3618.0,3616.4,1.4008532]
[1753413344936,3.4607,3617.9,3616.5,0.02765104]
[1753413345266,3.4607,3617.9,3616.6,0.15637042]
[1753413345440,2.76510438,3616.5,3616.4,0.8377]
[1753413345642,2.76518084,3616.4,3616.1,0.04]
[1753413345972,6.22535975,3617.1,3616.1,0.04]
[1753413346170,2.76494861,3616.8,3616.1,0.04]
[1753413346476,0.4607,3617.8,3616.4,2.76518084]
[1753413346640,3.0,3618.1,3617.0,2.76472033]
[1753413346839,0.4607,3618.4,3616.9,0.1143]
[1753413347162,6.41872342,3618.6,3616.9,0.1143]
[1753413347163,0.96222342,3618.6,3617.3,0.55]
[1753413347367,0.96222342,3618.6,3617.4,0.14194416]
[1753413347529,0.96222342,3618.6,3618.3,2.763717]
[1753413347730,0.96222342,3618.6,3618.3,0.8318]
[1753413348033,0.04,3618.9,3618.4,2.877946]
[1753413348366,0.04,3618.9,3618.6,2.76349969]
[1753413348567,0.04,3618.9,3618.5,0.4852746]
[1753413348779,0.04,3618.9,3618.8,2.76334696]
[1753413349067,0.04,3618.9,3618.3,0.8318]
[1753413349275,2.76356549,3618.6,3618.3,0.8318]
[1753413349440,2.76342332,3618.7,3617.8,3.8318]
[1753413349645,2.76377167,3618.3,3617.8,3.8318]
[1753413349842,2.76372882,3618.3,3617.8,0.8318]
[1753413350069,2.76415412,3617.8,3617.4,4.647]
[1753413350364,2.76434599,3617.5,3617.2,0.8442]
[1753413350570,0.4424,3617.8,3617.2,0.8442]
[1753413351071,0.4424,3617.8,3616.7,0.8442]
[1753413351368,2.7638052,3618.2,3616.8,3.02764875]
[1753413351534,3.72756207,3618.9,3616.8,0.14194875]
[1753413351734,2.76402391,3618.0,3616.8,0.14194875]
[1753413351939,0.4424,3618.8,3616.9,0.55]
[1753413352146,2.7636374,3618.5,3617.0,0.56379413]
[1753413352345,0.04,3618.9,3617.5,0.55]
[1753413352631,0.04,3618.9,3617.8,0.8442]
[1753413352832,0.04,3618.9,3618.4,2.76361941]
[1753413353036,0.04,3618.9,3618.5,2.76354088]
[1753413353230,0.04,3618.9,3618.3,4.647]
[1753413353465,2.76365244,3618.4,3618.0,4.648]
[1753413353669,0.38355331,3618.6,3618.1,0.1384]
[1753413353873,2.76357606,3618.5,3618.1,0.1384]
[1753413354256,0.1384,3618.6,3618.1,0.1384]
[1753413354455,3.00864766,3618.7,3618.1,0.1384]
[1753413354456,0.04,3618.9,3618.2,0.1143]